bitfinex-derivatives/quotes_ETHF0:USTF0_20250817
["timestamp","ask_amount","ask_price","bid_price","bid_amount"]
[1755471342181,1.4609,4527.5,4527.4,1.1154]
[1755471342581,1.4609,4527.5,4527.4,1.3536]
[1755471342983,3.2078,4528.2,4526.6,23.6058]
[1755471342984,0.5818,4527.2,4527.1,0.8628]
[1755471343191,1.4609,4527.2,4527.1,0.8628]
[1755471343390,1.4609,4527.2,4527.1,1.3536]
[1755471343981,0.8346,4527.2,4527.1,1.3536]
[1755471344182,1.4609,4527.2,4527.1,1.3536]
[1755471345391,1.4609,4527.2,4527.1,0.3221]
[1755471345591,1.4609,4527.2,4527.1,0.5625]
[1755471346090,0.5818,4526.7,4526.6,23.9279]
[1755471346284,1.4609,4526.7,4526.6,3.5299]
[1755471346491,1.4609,4526.7,4526.6,4.0706]
[1755471346692,1.4609,4526.7,4526.6,4.3232]
[1755471346993,1.0599,4526.8,4526.7,1.3536]
[1755471347291,1.4609,4526.8,4526.7,1.3536]
[1755471347888,0.8346,4526.8,4526.7,1.3536]
[1755471348289,1.4538,4526.8,4526.7,1.3536]
[1755471349893,0.2579,4526.8,4526.7,1.3536]
[1755471350094,0.877,4527.1,4526.7,1.3536]
[1755471350290,3.2078,4527.7,4526.8,0.7874]
[1755471350494,1.4663,4527.5,4527.4,0.3318]
[1755471350692,1.4663,4527.5,4527.4,0.8806]
[1755471351194,1.4663,4527.5,4527.4,0.5809]
[1755471351493,1.4663,4527.5,4527.4,0.3318]
[1755471351994,1.4663,4527.5,4527.1,0.7874]
[1755471352194,0.5893,4527.3,4527.2,0.5809]
[1755471352397,1.4663,4527.3,4527.2,0.5809]
[1755471352596,1.4663,4527.3,4527.2,0.8806]
[1755471353997,0.5893,4527.3,4526.9,0.2997]
[1755471354193,1.4663,4527.1,4527.0,0.5809]
[1755471354498,1.4663,4527.1,4527.0,0.8806]
[1755471354692,1.4663,4527.1,4526.7,0.2491]
[1755471354892,0.8471,4526.7,4526.6,4.0884]
[1755471355088,0.4269,4526.8,4526.7,1.3758]
[1755471355294,1.4663,4526.8,4526.7,1.3758]
[1755471356194,0.18963514,4526.8,4526.7,1.3758]
[1755471357299,0.18963937,4527.2,4526.7,1.3758]
[1755471357492,0.18963937,4527.1,4526.7,1.3758]
[1755471357688,0.18963937,4527.0,4526.9,1.3758]
[1755471357988,0.18964194,4527.2,4526.9,0.5884]
[1755471358193,0.18964194,4527.1,4527.0,0.5884]
[1755471358686,0.18964194,4527.1,4527.0,1.3758]
[1755471360495,0.8017,4528.4,4528.3,0.3318]
[1755471360703,1.0595,4528.4,4528.3,1.1057]
[1755471361088,1.4663,4528.4,4528.3,0.691]
[1755471361295,1.4663,4528.4,4528.3,0.3318]
[1755471361592,1.686691,4530.2,4527.9,3.2078]
[1755471361593,1.4663,4528.0,4527.9,3.2078]
[1755471363301,0.5893,4528.0,4527.6,0.3592]
[1755471363493,1.4663,4527.7,4527.6,0.3318]
[1755471363700,0.5893,4527.5,4527.0,0.2491]
[1755471363896,0.5893,4527.1,4527.0,0.2491]
[1755471364099,0.5893,4527.1,4526.9,3.4569]
[1755471364295,1.4663,4527.0,4526.9,3.7887]
[1755471364496,0.5893,4526.7,4526.6,0.3318]
[1755471364697,1.4663,4526.7,4526.6,0.5809]
[1755471364900,1.4663,4526.7,4526.6,0.691]
[1755471365096,1.4663,4526.7,4526.6,0.1619]
[1755471365397,0.6603,4526.4,4526.1,4.3392]
[1755471365601,1.0858,4526.2,4526.1,4.3392]
[1755471365802,1.4663,4526.2,4526.1,4.3392]
[1755471366100,1.4663,4525.5,4525.4,1.1057]
[1755471366502,0.5893,4525.5,4525.2,3.2078]
[1755471366694,1.4663,4525.3,4525.2,3.5396]
[1755471366894,1.4663,4525.3,4525.2,0.3318]
[1755471367100,1.4663,4525.3,4525.2,0.5809]
[1755471367490,1.4663,4525.3,4525.2,0.3318]
[1755471367694,1.4663,4525.3,4525.0,0.1101]
[1755471367695,0.5893,4525.3,4525.0,0.1101]
[1755471367894,1.4663,4525.2,4525.1,0.5809]
[1755471368102,1.4663,4525.2,4525.1,0.691]
[1755471368501,1.4663,4525.2,4525.1,0.5809]
[1755471368802,1.4663,4525.2,4525.1,0.3318]
[1755471369504,1.4663,4525.2,4525.1,0.5809]
[1755471369700,1.4663,4525.2,4525.1,0.3318]
[1755471370202,1.4663,4524.8,4524.7,24.2758]
[1755471370406,1.4663,4524.8,4524.7,24.6922]
[1755471371305,1.4663,4524.8,4524.7,23.5838]
[1755471372699,0.2578,4525.2,4524.7,24.1647]
[1755471372908,1.4663,4524.9,4524.8,1.1084]
[1755471373399,3.8461,4525.5,4524.8,1.1084]
[1755471373599,1.66148515,4525.4,4525.3,0.8698]
[1755471373806,1.4663,4525.1,4525.0,0.692]
[1755471373997,1.66148515,4525.1,4525.0,0.692]
[1755471374203,1.66148515,4525.1,4525.0,0.5809]
[1755471374799,1.4663,4525.1,4525.0,0.5809]
[1755471374998,1.66141992,4525.1,4525.0,0.5809]
[1755471375301,1.4663,4525.1,4525.0,0.5809]
[1755471376808,1.4663,4525.1,4525.0,0.692]
[1755471378605,1.4663,4525.1,4525.0,0.5809]
[1755471378804,1.4663,4525.1,4524.7,24.0698]
[1755471379012,0.815,4525.0,4524.9,0.1767]
[1755471379310,3.2078,4525.5,4524.7,23.5838]
[1755471379311,0.815,4525.3,4525.2,0.5097]
[1755471379610,1.6347024,4525.3,4525.2,1.1145]
[1755471380307,3.2078,4525.5,4525.4,0.5097]
[1755471380503,0.78,4526.1,4526.0,0.1704]
[1755471380708,1.63465839,4526.1,4526.0,0.5804]
[1755471381207,1.38715839,4526.1,4525.7,0.2474]
[1755471381415,1.63465839,4526.0,4525.9,1.1145]
[1755471381712,1.63465839,4526.0,4525.3,0.4944]
[1755471381910,1.0192,4525.5,4525.4,1.1145]
[1755471382310,1.4398,4525.5,4525.4,0.333]
[1755471382515,1.4398,4525.1,4525.0,21.2485]
[1755471382713,1.4398,4525.1,4525.0,21.4955]
[1755471383311,1.4398,4525.1,4525.0,21.2485]
[1755471383714,1.4398,4525.1,4525.0,21.0011]
[1755471383911,1.4398,4525.1,4525.0,21.2485]
[1755471384514,1.4398,4525.1,4525.0,21.4955]
[1755471386814,1.4398,4525.1,4525.0,21.2485]
[1755471387717,1.4398,4525.1,4525.0,21.4955]
[1755471388415,1.4398,4524.8,4524.7,3.2078]
[1755471388715,1.4398,4524.8,4524.7,24.2786]
[1755471388917,1.4398,4524.8,4524.7,24.7023]
[1755471390516,0.2475,4525.2,4524.7,24.7023]
[1755471390712,0.2392,4525.1,4525.0,0.5097]
[1755471390914,0.8723,4525.6,4525.0,20.8897]
[1755471391116,0.5675,4525.6,4525.5,0.5097]
[1755471391312,3.2078,4527.3,4525.5,24.7023]
[1755471391521,0.5675,4526.1,4526.0,1.1145]
[1755471391823,1.63499623,4526.1,4526.0,21.4945]
[1755471393214,1.4398,4526.1,4526.0,21.4945]
[1755471393420,1.63540347,4526.1,4526.0,21.4945]
[1755471393814,1.63540341,4526.1,4526.0,21.4945]
[1755471394014,1.63540932,4526.1,4526.0,21.2475]
[1755471394824,1.63540932,4526.1,4526.0,21.4945]
[1755471395315,1.63540932,4526.1,4526.0,20.713]
[1755471395512,1.65740932,4526.1,4525.9,3.2078]
[1755471395712,1.0542,4524.9,4524.8,3.7175]
[1755471395916,1.63540932,4524.9,4524.8,24.4543]
[1755471396310,1.63577519,4524.9,4524.8,4.0753]
[1755471396521,1.63577519,4524.9,4524.8,24.4543]
[1755471396714,1.63577519,4524.9,4524.8,24.7013]
[1755471397519,1.63577519,4524.9,4524.8,23.9198]
[1755471398721,1.63577519,4524.9,4524.8,24.2776]
[1755471398921,1.63577519,4524.9,4524.8,24.4543]
[1755471399122,1.63577519,4524.9,4524.8,24.7013]
[1755471400421,0.8723,4524.8,4524.3,31.805]
[1755471400722,1.4398,4524.4,4524.3,32.2994]
[1755471400921,1.63577519,4524.4,4524.3,20.9594]
[1755471401223,1.63577519,4524.4,4524.3,21.0698]
[1755471401419,1.63577519,4524.4,4524.3,0.333]
[1755471401618,0.5675,4523.8,4523.7,3.6512]
[1755471401823,1.63577519,4523.8,4523.7,20.713]
[1755471402318,1.63577519,4523.8,4523.7,21.1371]
[1755471402518,0.3856,4524.8,4524.2,0.6201]
[1755471402724,1.4398,4524.3,4524.2,20.8897]
[1755471402925,1.63453273,4524.3,4524.2,20.8897]
[1755471403223,1.63453273,4524.3,4524.2,21.2475]
[1755471403419,1.63453273,4524.3,4524.2,20.713]
[1755471403720,0.76223273,4524.3,4523.6,3.2078]
[1755471403916,0.5675,4523.8,4523.7,20.5476]
[1755471404119,1.63453273,4523.8,4523.7,20.724]
[1755471404313,1.63453273,4523.8,4523.7,21.0818]
[1755471404624,1.63453273,4523.8,4523.7,21.5055]
[1755471404823,0.19473273,4523.8,4523.7,21.5055]
[1755471405219,0.2392,4524.5,4523.6,3.2299]
[1755471405220,0.6331,4524.4,4523.8,0.6048]
[1755471405413,1.0192,4523.9,4523.8,1.1145]
[1755471405618,1.3868622,4523.9,4523.8,1.1145]
[1755471406117,1.6343622,4523.9,4523.8,1.1145]
[1755471406317,1.6343622,4523.9,4523.8,0.8675]
[1755471406526,1.6343622,4523.9,4523.8,20.9704]
[1755471406919,1.6343622,4523.9,4523.8,0.333]
[1755471407122,1.6343622,4523.9,4523.8,20.724]
[1755471407724,1.6343622,4523.9,4523.6,3.2078]
[1755471407921,1.4431,4523.2,4523.1,3.884]
[1755471408120,1.4431,4523.2,4523.1,24.277]
[1755471408327,1.4431,4523.2,4523.1,24.4539]
[1755471408522,1.4431,4523.2,4523.1,24.6999]
[1755471409227,0.4275,4523.2,4523.1,24.6999]
[1755471411022,1.4431,4523.2,4523.1,24.6999]
[1755471411629,1.4431,4523.2,4523.1,20.384]
[1755471411925,1.63740433,4523.2,4523.1,20.384]
[1755471412728,1.63740433,4523.2,4523.1,20.5484]
[1755471413026,1.63740433,4523.2,4523.1,20.7065]
[1755471413329,1.4431,4523.2,4523.1,20.7065]
[1755471413527,1.4431,4523.2,4523.1,21.2371]
[1755471413828,1.2023,4523.6,4523.5,0.4994]
[1755471414030,0.19420639,4523.6,4523.5,21.4841]
[1755471414523,1.03500639,4523.6,4523.5,21.4841]
[1755471414730,1.63730639,4523.6,4523.5,21.4841]
[1755471416427,1.4431,4523.5,4523.4,0.3225]
[1755471416625,1.63728399,4523.5,4523.4,20.7085]
[1755471416927,1.63728399,4523.5,4523.4,20.9517]
[1755471417125,1.4431,4523.5,4523.4,21.4851]
[1755471421128,1.4431,4523.5,4523.4,21.2391]
[1755471421734,1.63726085,4523.5,4523.4,21.2391]
[1755471422940,1.63726085,4523.5,4523.4,21.4851]
[1755471423239,1.4431,4523.5,4523.4,21.4851]
[1755471423944,1.4431,4523.5,4523.4,1.0991]
[1755471424241,1.63744,4523.5,4523.4,21.4851]
[1755471425139,1.63218021,4523.5,4523.4,21.4851]
[1755471427131,0.8531,4523.4,4522.5,7.526]
[1755471427337,0.59,4523.2,4522.6,20.386]
[1755471427641,1.4431,4522.7,4522.6,20.8854]
[1755471427942,1.4431,4522.7,4522.6,0.3225]
[1755471428137,1.4431,4522.7,4522.6,21.0622]
[1755471428337,0.8408,4522.7,4522.6,21.4851]
[1755471429139,1.2023,4522.7,4522.6,21.4851]
[1755471429444,1.63798196,4522.7,4522.6,21.4851]
[1755471429646,1.63798196,4522.7,4522.4,0.44223817]
[1755471429839,1.30228196,4522.6,4522.5,20.386]
[1755471430041,1.63798196,4522.6,4522.5,20.386]
[1755471430236,1.63798196,4522.6,4522.4,0.44223817]
[1755471430542,1.4431,4522.6,4522.5,20.386]
[1755471430743,1.63822745,4522.6,4522.5,20.386]
[1755471430937,1.4431,4522.5,4522.4,20.82823817]
[1755471431244,1.63822745,4522.5,4522.4,20.82823817]
[1755471431444,1.63822745,4522.5,4522.4,20.99263817]
[1755471431645,1.63822745,4522.5,4522.4,20.82823817]
[1755471433038,1.63822745,4522.5,4522.4,21.57083817]
[1755471433244,1.63822745,4522.5,4522.4,21.15073817]
[1755471435251,1.63822745,4522.5,4522.4,0.05113817]
[1755471435943,0.19512745,4522.5,4522.4,21.26103817]
[1755471436149,0.19512745,4522.5,4522.4,21.86683817]
[1755471436353,0.19512745,4522.5,4522.4,21.88893817]
[1755471437241,0.2508,4523.5,4522.5,0.4892]
[1755471437444,1.4431,4523.5,4523.4,1.3754]
[1755471437749,0.8408,4523.5,4523.4,21.7634]
[1755471438346,1.1744,4524.2,4524.1,0.3296]
[1755471438646,0.6001,4524.7,4524.1,21.2241]
[1755471438850,1.1744,4524.7,4524.6,1.3824]
[1755471439147,1.93781968,4524.7,4524.6,1.1229]
[1755471439342,1.93781968,4524.7,4523.7,3.2078]
[1755471439548,0.5743,4523.9,4523.8,20.7166]
[1755471439746,1.411,4523.9,4523.8,21.5099]
[1755471440146,1.411,4523.9,4523.7,3.2078]
[1755471440351,1.411,4523.9,4523.8,20.386]
[1755471440551,0.8367,4524.7,4523.9,0.8058]
[1755471440751,0.8112,4524.6,4524.5,0.3296]
[1755471440951,1.411,4524.6,4524.5,0.8759]
[1755471441450,0.5743,4524.6,4524.2,20.386]
[1755471441752,1.411,4524.3,4524.2,21.5089]
[1755471442652,1.411,4524.3,4524.2,21.7684]
[1755471443748,1.411,4524.3,4524.2,24.9762]
[1755471444848,0.2369,4525.1,4524.3,0.8058]
[1755471445056,0.3632,4525.0,4524.3,0.8058]
[1755471445247,3.2078,4525.4,4524.3,0.5766]
[1755471445449,0.8109,4524.7,4524.6,0.5766]
[1755471445656,0.8109,4524.7,4524.6,21.5069]
[1755471446050,1.411,4524.7,4524.6,21.5069]
[1755471446747,1.411,4524.7,4524.6,21.2003]
[1755471449056,1.411,4524.7,4524.6,20.9606]
[1755471449349,1.60278576,4524.7,4524.6,20.9606]
[1755471450456,1.60278576,4524.7,4524.6,21.2003]
[1755471451157,1.60278576,4524.7,4524.6,21.5069]
[1755471451357,1.60278576,4524.7,4524.6,21.7664]
[1755471453852,1.60278576,4524.7,4524.6,21.5069]
[1755471454548,1.60278576,4524.7,4524.6,20.9606]
[1755471454753,1.60278576,4524.7,4524.6,20.384]
[1755471455156,1.60278576,4524.7,4524.2,3.2078]
[1755471455459,1.411,4524.3,4524.2,4.5902]
[1755471455660,1.411,4524.3,4524.2,24.9682]
[1755471457356,1.411,4524.3,4524.2,23.9154]
[1755471457562,1.411,4524.3,4524.2,23.5858]
[1755471457861,1.411,4524.3,4524.2,23.7489]
[1755471458161,1.411,4524.3,4524.2,24.7087]
[1755471458359,1.411,4524.3,4524.2,24.9682]
[1755471460963,1.411,4524.3,4523.6,3.5144]
[1755471461160,0.8109,4523.7,4523.3,0.2595]
[1755471461370,1.411,4523.4,4523.3,1.0758]
[1755471461557,1.411,4523.4,4523.3,20.9526]
[1755471462270,1.60198382,4523.4,4523.3,0.3296]
[1755471462564,1.60198382,4523.4,4523.3,20.376]
[1755471463059,1.60198529,4523.4,4523.3,20.376]
[1755471463757,0.8367,4523.3,4523.0,3.5144]
[1755471463964,0.6001,4523.0,4522.8,0.8058]
[1755471464159,3.2078,4523.8,4522.5,3.4475]
[1755471464160,1.411,4522.9,4522.5,3.4475]
[1755471464359,1.411,4522.6,4522.4,0.05113817]
[1755471464560,1.411,4522.6,4522.5,20.9453]
[1755471464762,1.60216086,4522.6,4522.5,20.9453]
[1755471465264,1.60216086,4522.6,4522.5,21.7584]
[1755471466061,1.411,4522.6,4522.5,21.7584]
[1755471466267,1.60227947,4522.6,4522.5,21.7584]
[1755471466663,1.60227947,4522.6,4522.5,1.3824]
[1755471466864,1.60227947,4522.6,4522.5,21.7584]
[1755471470165,1.411,4522.6,4522.5,21.7584]
[1755471470664,31.828,4525.0,4522.6,0.0221]
[1755471470665,0.864,4524.6,4522.6,0.0221]
[1755471470871,0.864,4524.4,4523.2,0.8186]
[1755471471070,0.864,4524.2,4523.3,20.377]
[1755471471271,1.4301,4523.5,4523.4,1.4023]
[1755471471463,1.62106035,4523.5,4523.4,1.1512]
[1755471472071,1.62106035,4523.5,4523.4,21.2207]
[1755471472266,0.19094843,4523.5,4523.4,21.7793]
[1755471473678,0.19093784,4523.5,4523.4,20.9607]
[1755471474375,0.19093784,4523.5,4523.4,21.7793]
[1755471474376,0.84013784,4523.5,4523.4,21.7793]
[1755471475369,0.84013131,4523.5,4523.4,21.7793]
[1755471475773,0.6492,4523.5,4523.4,21.7793]
[1755471475977,1.62104517,4523.5,4523.4,21.7793]
[1755471479580,1.00364517,4523.5,4523.4,20.7046]
[1755471479779,1.62104517,4523.5,4523.4,21.2721]
[1755471480176,1.62104517,4523.5,4523.4,21.7793]
[1755471481575,1.00364517,4523.5,4523.4,21.7793]
[1755471481775,0.84014517,4523.5,4523.4,21.7793]
[1755471482087,0.2466,4524.9,4523.5,0.5111]
[1755471482376,3.2078,4525.2,4524.7,1.1416]
[1755471482377,1.4301,4524.8,4524.7,1.1416]
[1755471482578,1.4301,4524.8,4524.7,21.5146]
[1755471482785,4.6379,4525.2,4525.1,1.0251]
[1755471483080,3.6104,4525.2,4525.1,1.1416]
[1755471483679,3.857,4525.2,4525.1,1.1416]
[1755471484077,4.6379,4525.2,4525.1,1.1416]
[1755471484983,4.6379,4525.2,4524.4,3.4678]
[1755471485279,1.4301,4524.6,4524.5,21.2615]
[1755471485488,1.4301,4524.6,4524.5,21.5126]
[1755471490086,1.4301,4524.6,4524.5,21.5096]
[1755471494679,1.4301,4524.6,4524.5,21.142]
[1755471494892,0.5661,4524.2,4524.1,0.5876]
[1755471495088,1.4301,4524.2,4524.1,20.9516]
[1755471495287,1.4301,4524.2,4524.1,20.6916]
[1755471497189,1.4301,4524.2,4524.1,21.5056]
[1755471497887,1.00582701,4524.2,4524.1,20.363]
[1755471498087,1.61922701,4524.2,4524.1,20.363]
[1755471499390,1.40202701,4524.2,4524.1,21.5136]
[1755471499590,1.64422701,4524.2,4524.1,21.0677]
[1755471500691,1.64422701,4524.2,4524.1,20.7025]
[1755471501785,1.4548,4524.2,4524.1,21.3976]
[1755471501992,1.64446037,4524.2,4524.1,21.5136]
[1755471502491,1.64449076,4524.2,4524.1,21.5136]
[1755471502693,1.4548,4524.2,4524.1,21.5136]
[1755471502993,1.64449076,4524.2,4524.1,21.5136]
[1755471503790,1.64449076,4524.2,4524.1,21.2534]
[1755471505094,1.64455409,4524.2,4524.1,21.2534]
[1755471506592,1.64455409,4524.2,4524.1,21.0677]
[1755471506890,1.64455409,4524.2,4523.7,0.2492]
[1755471507198,1.4548,4523.8,4523.7,0.7047]
[1755471507383,1.64455409,4523.8,4523.7,21.5106]
[1755471511200,1.64474842,4523.8,4523.7,21.5106]
[1755471512999,1.64474842,4523.8,4523.7,1.1506]
[1755471513194,1.64474842,4523.8,4523.7,21.5086]
[1755471513404,0.18994842,4523.8,4523.7,1.1506]
[1755471513599,0.18994842,4523.8,4523.7,21.5086]
[1755471514206,0.19000738,4523.8,4523.7,21.5086]
[1755471514397,0.8556,4524.1,4523.7,20.8832]
[1755471514598,0.2422,4523.9,4523.7,20.8832]
[1755471514904,0.80340738,4523.8,4523.7,0.5252]
[1755471515204,0.80340738,4523.8,4523.7,21.5076]
[1755471515606,0.80340738,4523.8,4523.7,1.1506]
[1755471515804,0.80340738,4523.8,4523.7,21.5076]
[1755471516205,0.19000738,4523.8,4523.7,21.5076]
[1755471516416,0.6762,4524.5,4524.4,0.3395]
[1755471516597,1.64483021,4524.5,4524.4,21.5066]
[1755471517306,1.64484472,4524.5,4524.4,21.2464]
[1755471518508,1.64484472,4524.5,4524.4,21.5066]
[1755471519000,0.2488,4524.4,4523.9,3.2078]
[1755471519205,1.4548,4524.0,4523.9,3.9125]
[1755471519406,1.64484472,4524.0,4523.9,24.7124]
[1755471520202,0.44434472,4524.0,4523.9,24.7124]
[1755471520401,0.8556,4525.0,4524.0,0.6254]
[1755471520598,0.4274,4524.3,4524.2,0.8628]
[1755471520802,1.64489674,4524.3,4524.2,21.5046]
[1755471523614,1.64497463,4524.3,4524.2,21.5046]
[1755471524110,1.64497463,4524.3,4524.2,20.9427]
[1755471524313,1.64497463,4524.3,4524.2,21.5046]
[1755471525610,1.64497463,4524.3,4524.2,20.6935]
[1755471525812,1.64497463,4524.3,4524.2,20.354]
[1755471528617,1.64497463,4524.3,4523.9,3.2078]
[1755471528816,1.4779,4524.0,4523.9,3.7724]
[1755471529121,1.66807463,4524.0,4523.9,24.4752]
[1755471529516,1.4779,4524.0,4523.9,24.4752]
[1755471529720,1.66813444,4524.0,4523.9,24.4742]
[1755471530115,1.4779,4524.0,4523.9,24.4742]
[1755471530312,1.66813495,4524.0,4523.9,24.6599]
[1755471530711,1.66813495,4524.0,4523.9,4.3119]
[1755471531320,1.66813495,4524.0,4523.9,24.6589]
[1755471532122,1.66813495,4524.0,4523.9,21.4511]
[1755471532328,1.66813495,4524.0,4523.9,1.1041]
[1755471532829,1.66813495,4524.0,4523.9,21.4511]
[1755471533021,1.66813495,4524.0,4523.9,1.1041]
[1755471533217,1.66813495,4524.0,4523.9,21.4501]
[1755471533916,1.66813803,4524.0,4523.9,21.4501]
[1755471534113,1.66813803,4524.0,4523.9,20.9106]
[1755471534315,1.66813803,4524.0,4523.6,0.3538]
[1755471534515,1.4779,4523.7,4523.6,0.6807]
[1755471534714,1.66813803,4523.7,4523.6,21.0257]
[1755471535115,1.66813803,4523.7,4523.4,3.4455]
[1755471535116,1.4779,4523.5,4523.4,3.2078]
[1755471535322,1.66813803,4523.5,4523.4,20.345]
[1755471535526,0.5805,4523.1,4522.8,31.9411]
[1755471535721,1.4779,4522.9,4522.8,0.361]
[1755471535926,1.66813803,4522.9,4522.8,20.345]
[1755471536827,0.5805,4522.6,4522.5,0.6807]
[1755471537019,1.66813803,4522.6,4522.4,0.05113817]
[1755471537226,1.66813803,4522.5,4522.4,20.39513817]
[1755471537522,1.66813803,4522.5,4522.4,21.07583817]
[1755471538026,1.66813803,4522.5,4522.4,21.31353817]
[1755471538228,1.66813803,4522.5,4522.4,21.49923817]
[1755471538827,1.4779,4522.5,4522.4,21.49923817]
[1755471539036,1.6677727,4522.5,4522.4,21.49923817]
[1755471539237,1.6677727,4522.5,4522.4,21.26153817]
[1755471539634,1.6677727,4522.5,4522.4,0.91753817]
[1755471539838,1.6677727,4522.5,4522.4,21.26253817]
[1755471540137,1.6677727,4522.5,4522.4,21.50023817]
[1755471541238,1.6677727,4522.5,4522.4,21.26253817]
[1755471541429,1.6677727,4522.5,4522.4,21.50023817]
[1755471542731,1.6677727,4522.5,4522.4,1.15523817]
[1755471542926,1.6677727,4522.5,4522.4,20.71683817]
[1755471543333,1.6677727,4522.5,4522.4,0.37083817]
[1755471543539,1.6677727,4522.5,4522.4,20.71583817]
[1755471544037,1.6677727,4522.5,4522.4,21.07683817]
[1755471544233,1.6677727,4522.5,4522.4,21.50023817]
[1755471545140,1.6677727,4522.5,4522.4,21.50123817]
[1755471546240,1.4779,4522.5,4522.4,21.50123817]
[1755471547737,1.2284,4522.5,4522.4,21.50123817]
[1755471547944,1.4779,4523.0,4522.9,1.1041]
[1755471548132,1.66728905,4523.0,4522.9,21.4481]
[1755471548445,1.66728905,4523.0,4522.6,0.2449]
[1755471548632,0.5805,4522.7,4522.6,0.8664]
[1755471548837,1.66728905,4522.7,4522.6,1.1041]
[1755471549238,1.66728905,4522.7,4522.6,21.4471]
[1755471549437,1.66728905,4522.7,4522.6,21.2094]
[1755471551147,1.66728905,4522.7,4522.6,21.4471]
[1755471551339,1.66728905,4522.7,4522.6,21.2094]
[1755471551944,1.66728905,4522.7,4522.6,21.4471]
[1755471553443,1.66728905,4522.7,4522.6,21.4451]
[1755471553639,0.18938905,4522.7,4522.6,21.0913]
[1755471553834,0.8974,4523.0,4522.6,21.4451]
[1755471554039,0.5805,4522.8,4522.7,1.1041]
[1755471554240,0.76988905,4522.8,4522.7,1.1041]
[1755471554538,1.41778905,4522.8,4522.7,1.1041]
[1755471554740,1.66728905,4522.8,4522.7,21.4451]
[1755471555342,1.66728905,4522.8,4522.7,1.1041]
[1755471555637,1.66728905,4522.8,4522.7,21.4441]
[1755471556551,1.66849344,4522.8,4522.7,21.4441]
[1755471559654,1.6686282,4522.8,4522.7,21.4441]
[1755471561658,0.1907282,4522.8,4522.7,21.4441]
[1755471562058,0.1907282,4522.8,4522.7,21.4662]
[1755471562258,0.0745282,4522.8,4522.7,21.4662]
[1755471562458,1.3331,4523.6,4523.5,0.8218]
[1755471562647,0.2604,4524.1,4523.5,21.1578]
[1755471562854,1.4951,4524.1,4524.0,0.3308]
[1755471563049,1.4951,4524.1,4524.0,0.8218]
[1755471565758,4.3132,4524.5,4524.4,0.5687]
[1755471566060,5.23045652,4524.5,4524.4,0.8218]
[1755471566757,5.23045652,4524.5,4524.4,0.5839]
[1755471567562,5.23045652,4524.5,4524.4,0.8218]
[1755471567760,4.2805,4524.5,4524.4,0.8218]
[1755471567959,4.5409,4524.5,4524.4,0.8218]
[1755471568550,0.6411,4524.7,4524.4,0.8218]
[1755471568760,4.7029,4525.1,4525.0,0.8218]
[1755471568952,5.2298767,4525.1,4525.0,0.8218]
[1755471569156,4.7029,4525.1,4525.0,0.8218]
[1755471569660,0.5936,4524.7,4524.6,20.4916]
[1755471569854,1.4951,4524.7,4524.6,20.33]
[1755471570055,1.4951,4524.7,4524.6,20.4916]
[1755471570263,1.4951,4524.7,4524.6,20.7447]
[1755471570464,1.4951,4524.7,4524.3,0.491]
[1755471570659,3.2078,4525.1,4524.1,3.2078]
[1755471570660,1.4951,4524.4,4524.1,3.2078]
[1755471570864,0.5936,4524.4,4524.3,0.3308]
[1755471571062,0.5936,4524.4,4524.3,0.8218]
[1755471571257,3.2078,4525.1,4524.4,0.2379]
[1755471571258,0.5118,4525.0,4524.4,0.2379]
[1755471571458,0.5936,4524.5,4524.4,0.8218]
[1755471571663,1.4951,4524.5,4524.4,0.8218]
[1755471572460,1.0727,4524.5,4524.4,0.8218]
[1755471572661,1.4951,4525.0,4524.9,0.5839]
[1755471572866,0.5936,4524.7,4524.6,20.325]
[1755471573062,0.5936,4524.7,4524.2,0.2531]
[1755471573063,0.2594,4524.3,4524.2,20.4866]
[1755471573267,1.4951,4524.3,4524.2,21.1468]
[1755471575867,0.2514,4524.6,4524.3,0.491]
[1755471576072,0.18887738,4524.5,4524.4,0.8218]
[1755471577169,1.68397738,4524.5,4524.4,0.3308]
[1755471577373,1.68397738,4524.5,4524.4,20.6528]
[1755471577573,1.68397738,4524.5,4524.4,21.1438]
[1755471578878,1.68397738,4524.5,4524.4,20.6528]
[1755471579080,1.4951,4524.2,4524.1,3.5386]
[1755471579281,1.4951,4524.2,4524.1,24.1117]
[1755471579481,1.4951,4524.2,4524.1,20.9039]
[1755471579679,1.4951,4524.2,4524.1,0.5839]
[1755471579975,1.4951,4524.2,4524.1,20.9029]
[1755471580388,1.4951,4524.2,4524.1,21.1408]
[1755471583785,3.2078,4525.1,4524.1,21.1408]
[1755471583991,0.9015,4525.0,4524.2,0.491]
[1755471584291,1.4951,4524.8,4524.7,0.1616]
[1755471584485,1.68266102,4524.8,4524.7,0.1616]
[1755471584886,1.68266102,4524.8,4524.7,0.3308]
[1755471585087,1.68266102,4524.8,4524.7,0.5839]
[1755471585289,0.44696102,4524.8,4524.7,0.3308]
[1755471585493,1.68266102,4524.8,4524.7,0.8218]
[1755471586789,1.42226102,4524.8,4524.7,0.5839]
[1755471587186,1.68266102,4524.8,4524.7,0.8218]
[1755471587786,1.68266102,4524.8,4524.7,0.5839]
[1755471587984,1.68266102,4524.8,4524.5,20.314]
[1755471587985,0.78116102,4524.8,4524.5,20.314]
[1755471588189,0.5863,4524.6,4524.5,20.7457]
[1755471588390,1.63296102,4524.6,4524.5,20.7457]
[1755471588593,1.63296102,4524.6,4524.5,20.9173]
[1755471591494,1.63296102,4524.6,4524.5,21.1637]
[1755471591995,1.63296102,4524.6,4524.5,20.9173]
[1755471592200,1.63296102,4524.6,4524.5,20.314]
[1755471592400,1.63296102,4524.6,4524.5,20.9173]
[1755471592696,1.63296102,4524.6,4524.5,21.1637]
[1755471593099,1.4454,4524.6,4524.5,21.1637]